lending/lending_fUSD_20251107
["ID","MTS","AMOUNT","RATE_DAILY","PERIOD"]
[393369461,1762536640461,-160.98037661,0.00017566,2]
[393369462,1762536640471,-535.0,0.00017606,2]
[393369463,1762536640481,-495.0,0.00017606,2]
[393369464,1762536640491,-500.0,0.00017606,2]
[393369465,1762536640501,-500.0,0.00017606,2]
[393369466,1762536640511,-453.0,0.00017608,2]
[393369467,1762536640520,-420.0,0.00017649,2]
[393369468,1762536640531,-420.0,0.00017649,2]
[393369469,1762536640540,-893.7197719,0.0001766,2]
[393369470,1762536640549,-453.0,0.00017694,2]
[393369471,1762536640559,-453.0,0.00017701,2]
[393369472,1762536640568,-219.44793799,0.00017706,2]
[393369473,1762536640578,-279.38,0.00017712,2]
[393369474,1762536640588,-17578.38962989,0.00017715,2]
[393369475,1762536640598,-4978.45645256,0.00017715,2]
[393369476,1762536640607,-9999.99,0.00017728,2]
[393369477,1762536640617,-13020.09,0.00017728,2]
[393369478,1762536640627,-1680.0,0.00017738,2]
[393369480,1762536640637,-535.0,0.00017743,2]
[393369481,1762536640646,-495.0,0.00017743,2]
[393369482,1762536640656,-500.0,0.00017743,2]
[393369483,1762536640668,-569.69993322,0.00017743,2]
[393369484,1762536640678,-334.0,0.00017755,2]
[393369485,1762536640688,-250.0,0.0001776,2]
[393369486,1762536640697,-300.0,0.0001776,2]
[393369487,1762536640706,-300.0,0.0001776,2]
[393369488,1762536640716,-195.0,0.00017761,2]
[393369489,1762536640726,-1000.0,0.000178,2]
[393369490,1762536640735,-160.56398269,0.000178,2]
[393369491,1762536640745,-1035.81378292,0.00017803,2]
[393369492,1762536640754,-150.0,0.00017808,2]
[393369493,1762536640764,-453.0,0.00017818,2]
[393369494,1762536640773,-1387.75978,0.0001782,2]
[393369495,1762536640782,-453.0,0.00017828,2]
[393369496,1762536640791,-500.0,0.00017841,2]
[393369497,1762536640800,-821.0,0.00017842,2]
[393369498,1762536640810,-1596.0,0.00017842,2]
[393369499,1762536640819,-814.749,0.00017842,2]
[393369500,1762536640828,-1273.0,0.00017842,2]
[393369501,1762536640837,-905.0,0.00017842,2]
[393369502,1762536640846,-1188.0,0.00017842,2]
[393369503,1762536640855,-607.0,0.00017842,2]
[393369504,1762536640864,-596.318,0.00017842,2]
[393369505,1762536640874,-3424.0,0.00017842,2]
[393369506,1762536640883,-311.988,0.00017856,2]
[393369507,1762536640891,-4409.615,0.00017856,2]
[393369508,1762536640901,-535.0,0.0001788,2]
[393369509,1762536640909,-495.0,0.0001788,2]
[393369510,1762536640921,-500.0,0.0001788,2]
[393369511,1762536640930,-500.0,0.00017899,2]
[393369512,1762536640939,-366.31333729,0.00017899,2]
[393369513,1762536640949,-500.0,0.00017899,2]
[393369514,1762536640958,-500.0,0.00017899,2]
[393369515,1762536640968,-500.0,0.00017899,2]
[393369516,1762536640977,-500.0,0.00017899,2]
[393369517,1762536640990,-17578.38962989,0.000179,2]
[393369518,1762536640999,-1459.0,0.000179,2]
[393369519,1762536641009,-4978.45645256,0.000179,2]
[393369520,1762536641019,-160.98037661,0.000179,2]
[393369521,1762536641031,-9560.44544483,0.000179,2]
[393369522,1762536641040,-453.0,0.00017903,2]
[393369523,1762536641051,-1387.75979,0.0001793,2]
[393369524,1762536641061,-150.0,0.00017945,2]
[393369525,1762536641072,-181.0,0.00017973,2]
[393369526,1762536641083,-1753.0,0.00017973,2]
[393369527,1762536641094,-500.51641195,0.00017973,2]
[393369528,1762536641106,-500.0,0.00017973,2]
[393369529,1762536641117,-500.0,0.00017973,2]
[393369530,1762536641127,-501.10194398,0.00017973,2]
[393369531,1762536641137,-500.0,0.00017973,2]
[393369532,1762536641147,-500.0,0.00017973,2]
[393369533,1762536641158,-502.98565705,0.00017973,2]
[393369534,1762536641174,-500.0,0.00017973,2]
[393369535,1762536641184,-500.0,0.00017973,2]
[393369536,1762536641194,-500.0,0.00017973,2]
[393369537,1762536641203,-649.36368312,0.00017973,2]
[393369538,1762536641214,-500.0,0.00017973,2]
[393369539,1762536641224,-500.0,0.00017973,2]
[393369540,1762536641234,-500.0,0.00017973,2]
[393369541,1762536641244,-500.0,0.00017973,2]
[393369542,1762536641253,-500.77100973,0.00017973,2]
[393369543,1762536641262,-162.42661028,0.00017973,2]
[393369544,1762536641272,-500.0,0.00017973,2]
[393369545,1762536641281,-500.0,0.00017973,2]
[393369546,1762536641292,-505.50862562,0.00017973,2]
[393369547,1762536641302,-500.0,0.00017973,2]
[393369548,1762536641312,-500.0,0.00017973,2]
[393369549,1762536641322,-500.0,0.00017973,2]
[393369550,1762536641332,-371.11277206,0.00017973,2]
[393369551,1762536641342,-500.0,0.00017973,2]
[393369552,1762536641352,-500.0,0.00017973,2]
[393369553,1762536641361,-500.0,0.00017973,2]
[393369554,1762536641370,-500.0,0.00017973,2]
[393369555,1762536641379,-500.0,0.00017988,2]
[393369556,1762536641389,-10731.9324878,0.00017989,2]
[393369557,1762536641398,-542.50588838,0.0001799,2]
[393369558,1762536641407,-542.50588838,0.0001799,2]
[393369559,1762536641421,-19862.2138271,0.00017992,2]
[393369560,1762536641430,-8758.2136922,0.00017992,2]
[393369561,1762536641439,-151.0,0.00017997,2]
[393369562,1762536641448,-700.66516693,0.00017999,2]
[393369563,1762536641457,-500.0,0.00017999,2]
[393369564,1762536641466,-381.7869413,0.00017999,2]
[393369565,1762536641475,-500.0,0.00017999,2]
[393369566,1762536641484,-500.0,0.00017999,2]
[393369567,1762536641493,-500.0,0.00017999,2]
[393369568,1762536641502,-419.6555252,0.00017999,2]
[393369569,1762536641512,-300.0,0.00017999,2]
[393369570,1762536641521,-500.0,0.00017999,2]
[393369571,1762536641531,-500.0,0.00017999,2]
[393369572,1762536641540,-500.0,0.00017999,2]
[393369573,1762536641549,-500.0,0.00017999,2]
[393369574,1762536641559,-417.54862495,0.00017999,2]
[393369575,1762536641569,-500.0,0.00017999,2]
[393369576,1762536641579,-500.0,0.00017999,2]
[393369577,1762536641589,-500.0,0.00017999,2]
[393369578,1762536641598,-528.75,0.00017999,2]
[393369579,1762536641607,-500.0,0.00017999,2]
[393369580,1762536641617,-300.0,0.00017999,2]
[393369581,1762536641626,-1493311.87390037,0.00018,2]
[393369582,1762536641642,-596.34361244,0.00018,2]
[393369583,1762536641654,-314.99999998,0.00018,2]
[393369584,1762536641668,-32150.90241487,0.00018,2]
[393369585,1762536641679,-5739.18585998,0.00018,2]
[393369586,1762536641690,-28057.1412,0.00018,2]
[393369587,1762536641701,-1833.71125071,0.00018,2]
[393369588,1762536641712,-1580.29999603,0.00018,2]
[393369589,1762536641723,-692.42360236,0.00018,2]
[393369590,1762536641739,-250.79227332,0.00018,2]
[393369591,1762536641752,-20130.56784051,0.00018,2]
[393369592,1762536641766,-71941.12870923,0.00018,2]
[393369593,1762536641782,-717.91807822,0.00018,2]
[393369594,1762536641793,-495.75145687,0.00018,2]
[393369595,1762536642338,-1.7e-07,0.0001605,2]
[393369596,1762536642350,-209.38705754,0.0001605,2]
[393369597,1762536642360,-151.0,0.0001651,2]
[393369598,1762536642370,-273.27685945,0.00016643,2]
[393369599,1762536642380,-151.0,0.00016795,2]
[393369600,1762536642389,-1316.0,0.00017842,2]
[393369601,1762536642398,-3628447.65146257,0.00018,2]
[393369602,1762536642407,-140181.86021294,0.00018,2]
[393369603,1762536642418,-2121861.66967442,0.00018,2]
[393369604,1762536642427,-1207.85278956,0.00018,2]
[393369605,1762536642437,-150.0,0.00018,2]
[393369606,1762536642446,-594.79762274,0.00018,2]
[393369607,1762536642455,-904077.53035884,0.00018,2]
[393369608,1762536642467,-23403.97763648,0.00018,2]
[393369609,1762536642479,-15869.70853535,0.00018,2]
[393369610,1762536642490,-4384.421697,0.00018,2]
[393369611,1762536642501,-16868.3811071,0.00018,2]
[393369612,1762536642512,-2185.54206641,0.00018,2]
[393369613,1762536642523,-11552.6414046,0.00018,2]
[393369614,1762536642535,-622.73,0.00018,2]
[393369615,1762536642546,-960.09867848,0.00018,2]
[393369616,1762536642756,-693.7537393,0.00018,2]
[393369618,1762536642768,-1960.504636,0.00018,2]
[393369620,1762536642780,-3182.41458631,0.00018,2]
[393369621,1762536642791,-85702.06101917,0.00018,2]
[393369622,1762536642803,-302.23130392,0.00018,2]
[393369623,1762536642823,-5241.27721203,0.00018,2]
[393369627,1762536643086,-1481.13715763,0.00018,2]
[393369628,1762536643097,-448.09181401,0.00018,2]
[393369629,1762536643109,-563.8722431,0.00018,2]
[393369630,1762536643121,-1226.48322864,0.00018,2]
[393369631,1762536643145,-6409.1351273,0.00018,2]
[393369632,1762536643254,-799.77282,0.00018,2]
[393369633,1762536643311,-2315074.59545451,0.00018,2]
[393369634,1762536643323,-19984.34415528,0.00018,2]
[393369635,1762536643335,-34000.0,0.00018,2]
[393369636,1762536643347,-5037.9079305,0.00018,2]
[393369648,1762536646218,-273.27685945,0.00016894,2]
[393369649,1762536646227,-747.02314055,0.00018,2]
[393369650,1762536646274,-2153.50003926,0.00018,2]
[393369651,1762536646285,-1116.0,0.00018,2]
[393369652,1762536646296,-913.21025527,0.00018,2]
[393369653,1762536646307,-2856.80126389,0.00018,2]
[393369654,1762536646332,-21605.12295052,0.00018,2]
[393369655,1762536646342,-1187.5029399,0.00018,2]
[393369656,1762536646354,-17136.6378306,0.00018,2]
[393369657,1762536646365,-1179.92312547,0.00018,2]
[393369658,1762536646389,-159.918,0.00017842,2]
[393369659,1762536646398,-1882.69408084,0.00018,2]
[393369660,1762536646409,-13524.0,0.00018,2]
[393369661,1762536646893,-130666.24710172,0.00018,2]
[393369662,1762536646908,-1683.74619309,0.00018,2]
[393369663,1762536646922,-8631.51826445,0.00018,2]
[393369664,1762536646942,-101092.10709156,0.00018,2]
[393369665,1762536646968,-1033.49999977,0.00018,2]
[393369667,1762536660385,-280.78466054,0.00015477,2]
[393369668,1762536663204,-267.17748346,0.00015477,2]
[393369669,1762536667303,-283.92785583,0.00015477,2]
[393369670,1762536670099,-290.981863,0.00015477,2]
[393369671,1762536671628,-275.56214866,0.00015477,2]
[393369672,1762536674391,-180.57687324,0.00015477,2]
[393369673,1762536684534,-199.86941403,0.00015477,2]
[393369674,1762536688730,-163.33,0.00015477,2]
[393369675,1762536706084,-136.80058597,0.00015477,2]
[393369676,1762536706105,-47.04523304,0.00015477,2]
[393369677,1762536707569,-452.95476696,0.00015477,2]
[393369678,1762536707591,-11.48526929,0.00015477,2]
[393369679,1762536711270,-220.98199978,0.00015477,2]
[393369680,1762536712901,-267.53273093,0.00015477,2]
[393369681,1762536712923,-128.95423744,0.00015477,2]
[393369682,1762536717514,-323.61252082,0.00015477,2]
[393369683,1762536720171,-47.43324174,0.00015477,2]
[393369684,1762536720196,-288.21410473,0.00015477,2]
[393369685,1762536722880,-190.54289006,0.00015476,2]
[393369686,1762536726083,-109.45710994,0.00015476,2]
[393369687,1762536726108,-211.78589527,0.00015477,2]
[393369688,1762536726132,-65.39804529,0.00015477,2]
[393369689,1762536729681,-314.9433263,0.00015477,2]
[393369690,1762536732780,-119.65862841,0.00015477,2]
[393369691,1762536732802,-44.51535943,0.00015477,2]
[393369692,1762536734305,-377.73012896,0.00015477,2]
[393369693,1762536750388,-77.75451161,0.00015477,2]
[393369694,1762536750422,-164.33248511,0.00015477,2]
[393369695,1762536752523,-335.66751489,0.00015477,2]
[393369696,1762536752551,-103.8136927,0.00015477,2]
[393369697,1762536754473,-300.0,0.00015477,2]
[393369698,1762536757214,-96.1863073,0.00015477,2]
[393369699,1762536757239,-92.07074454,0.00015477,2]
[393369700,1762536759888,-261.2339615,0.00015477,2]
[393369701,1762536763416,-366.42155809,0.00015476,2]
[393369702,1762536765392,-189.43556377,0.00015476,2]
[393369703,1762536768288,-172.26174057,0.00015476,2]
[393369704,1762536769959,-185.66605824,0.00015476,2]
[393369705,1762536772097,-157.615936,0.00015476,2]
[393369706,1762536775888,-128.59914333,0.00015476,2]
[393369707,1762536775911,-27.28894707,0.00015477,2]
[393369708,1762536779059,-164.46490794,0.00015377,2]
[393369709,1762536779091,-37.18256533,0.00015477,2]
[393369710,1762536795381,-175.12599175,0.00015476,2]
[393369711,1762536798616,-124.87400825,0.00015476,2]
[393369712,1762536798644,-82.22378156,0.00015477,2]
[393369713,1762536798667,-42.90221019,0.00015477,2]
[393369714,1762536800109,-244.37199697,0.00015477,2]
[393369715,1762536802212,-212.72579284,0.00015477,2]
[393369716,1762536802235,-69.2527122,0.00015477,2]
[393369717,1762536803828,-157.51193249,0.00015477,2]
[393369718,1762536805461,-186.39494075,0.00015477,2]
[393369719,1762536808699,-86.84041456,0.00015477,2]
[393369720,1762536808722,-161.06834118,0.00015477,2]
[393369721,1762536810303,-154.95309387,0.00015477,2]
[393369722,1762536812749,-183.97856495,0.00015477,2]
[393369723,1762536812770,-230.60235556,0.00015477,2]
[393369724,1762536815395,-269.39764444,0.00015477,2]
[393369725,1762536815417,-49.58191581,0.00015477,2]
[393369726,1762536820186,-315.18396131,0.00015477,2]
[393369727,1762536822423,-135.23412288,0.00015477,2]
[393369728,1762536822446,-165.55761291,0.00015477,2]
[393369729,1762536825441,-303.79492659,0.00015477,2]
[393369730,1762536827935,-30.6474605,0.00015477,2]
[393369731,1762536827956,-287.27420716,0.00015477,2]
[393369732,1762536829903,-172.37,0.00015477,2]
[393369733,1762536833307,-40.35579284,0.00015477,2]
[393369734,1762536833329,-142.11079967,0.00015477,2]
[393369741,1762536835341,-178.3182961,0.00015477,2]
[393369747,1762536837530,-179.57090423,0.00015477,2]
[393369748,1762536837553,-29.87842146,0.00015477,2]
[393369749,1762536839260,-233.56092777,0.00015477,2]
[393369758,1762536841830,-195.90182226,0.00015477,2]
[393369768,1762536844565,-221.25861658,0.00015477,2]
[393369769,1762536846671,-300.00138342,0.00015477,2]
[393369866,1762536900898,-176.33,0.00015377,2]
[393369895,1762536966671,-172.37,0.000153,2]
[393369896,1762536966702,-123.67138342,0.00015377,2]
[393369897,1762536966731,-4703.79794378,0.00015477,2]
[393369898,1762536966798,-0.3313456,0.00015629,2]
[393369899,1762536966880,-249.6686544,0.00015629,2]
[393369900,1762536966910,-1200.0,0.00015779,2]
[393369901,1762536966944,-300.0,0.00015779,2]
[393369902,1762536966974,-252.09600473,0.0001578,2]
[393369903,1762536967006,-300.0,0.0001578,2]
[393369904,1762536967035,-620.07204538,0.0001578,2]
[393369905,1762536967067,-195.0,0.0001578,2]
[393369906,1762536967098,-250.0,0.00015928,2]
[393369907,1762536967134,-195.0,0.00016071,2]
[393369908,1762536967165,-152.07,0.00016083,2]
[393369909,1762536967199,-160.98037661,0.00016132,2]
[393369910,1762536967302,-4868.27673181,0.00016132,2]
[393369911,1762536967402,-500.0,0.00016231,2]
[393369912,1762536967438,-500.0,0.00016231,2]
[393369913,1762536967472,-500.0,0.00016231,2]
[393369914,1762536967504,-500.0,0.00016231,2]
[393369915,1762536967536,-361.08723244,0.00016231,2]
[393369916,1762536979004,195.92682503,0.00015529,2]
[393369917,1762536984653,5081.90871009,0.00016132,2]
[393369918,1762536984684,10000.01,0.00016132,2]
[393369919,1762536984709,2164.64223095,0.00016132,2]
[393369920,1762536984968,195.92682502,0.00016132,2]
[393369922,1762537022653,166.66,0.00015565,2]
[393369923,1762537022902,166.66,0.00015893,2]
[393369924,1762537023135,166.66,0.0001622,2]
[393369926,1762537052099,366.31333729,0.00016145,2]
[393369927,1762537059975,250.0,0.000156,2]
[393369928,1762537061460,1200.0,0.00016231,2]
[393369929,1762537089942,1000.0,0.00016132,2]
[393369930,1762537100542,1219.12019798,0.00017,3]
[393369931,1762537103365,250.0,0.00016232,2]
[393369934,1762537113229,500.0,0.00016231,2]
[393369936,1762537129325,204.95764464,0.00016132,2]
[393369953,1762537156766,160.98037661,0.00016132,2]
[393369955,1762537170645,1000.0,0.00016232,2]
[393369958,1762537201380,300.0,0.00016231,2]
[393369959,1762537202893,1200.0,0.00016231,2]
[393369960,1762537205722,707.20958549,0.00016222,2]
[393369961,1762537205750,1769.96041451,0.00016222,2]
[393369964,1762537248881,500.0,0.00016231,2]
[393369965,1762537261671,300.0,0.00016231,2]
[393369966,1762537268311,500.0,0.00016231,2]
[393369968,1762537303072,1604.222,0.00016132,2]
[393369969,1762537313183,16363.94167994,0.00039091,30]
[393369972,1762537322097,300.0,0.00016231,2]
[393369973,1762537323879,-4000.0,0.00016232,2]
[393369976,1762537331660,151.0,0.00016232,2]
[393369977,1762537332016,3848.81254309,0.00039091,30]
[393369978,1762537332314,151.0,0.00016232,2]
[393369979,1762537332939,151.0,0.00016232,2]
[393369980,1762537333592,151.0,0.00016232,2]
[393369982,1762537334560,151.0,0.00016232,2]
[393369983,1762537334846,151.0,0.00016232,2]
[393369984,1762537335471,151.0,0.00016232,2]
[393369985,1762537336114,151.0,0.00016232,2]
[393369987,1762537336741,151.0,0.00016232,2]
[393369988,1762537337391,151.0,0.00016232,2]
[393369989,1762537338021,151.0,0.00016232,2]
[393369990,1762537338695,151.0,0.00016232,2]
[393369991,1762537339345,151.0,0.00016232,2]
[393369992,1762537339991,151.0,0.00016232,2]
[393369993,1762537340619,151.0,0.00016232,2]
[393369994,1762537341257,151.0,0.00016232,2]
[393369995,1762537341892,151.0,0.00016232,2]
[393369998,1762537342523,151.0,0.00016232,2]
[393369999,1762537343164,151.0,0.00016232,2]
[393370000,1762537343782,151.0,0.00016232,2]
[393370005,1762537358633,500.0,0.00016231,2]
[393370007,1762537370869,1505.82758549,0.00016132,2]
[393370008,1762537370894,10000.01,0.00016132,2]
[393370009,1762537370919,4016.0672615,0.00016132,2]
[393370011,1762537382889,300.0,0.00016231,2]
[393370015,1762537391567,9700.01,0.00015848,2]
[393370016,1762537391589,10000.01,0.00015848,2]
[393370017,1762537391611,10000.01,0.00015848,2]
[393370018,1762537391634,554.1015319,0.00015848,2]
[393370020,1762537404459,500.0,0.00016132,2]
[393370023,1762537422889,4381.44905862,0.00016132,2]
[393370024,1762537432040,160.98037661,0.00016132,2]
[393370032,1762537442488,300.0,0.00016231,2]
[393370038,1762537464711,179.33793906,0.00016132,2]
[393370048,1762537487118,500.0,0.00016231,2]
[393370053,1762537501915,1200.0,0.00016231,2]
[393370054,1762537501962,300.0,0.00016231,2]
[393370055,1762537502389,300.0,0.00016231,2]
[393370067,1762537548926,500.0,0.00016231,2]
[393370076,1762537587818,500.0,0.00016231,2]
[393370079,1762537633284,151.0,0.00016232,2]
[393370080,1762537634064,151.0,0.00016232,2]
[393370081,1762537634691,151.0,0.00016232,2]
[393370082,1762537634781,224.33769493,0.00016231,2]
[393370083,1762537635752,151.0,0.00016232,2]
[393370085,1762537636491,151.0,0.00016232,2]
[393370086,1762537637481,151.0,0.00016232,2]
[393370090,1762537638170,151.0,0.00016232,2]
[393370091,1762537638792,151.0,0.00016232,2]
[393370092,1762537639413,151.0,0.00016232,2]
[393370093,1762537640053,94.90493078,0.00016232,2]
[393370094,1762537640076,56.09506922,0.00016232,2]
[393370095,1762537640674,151.0,0.00016232,2]
[393370096,1762537641303,151.0,0.00016232,2]
[393370097,1762537641946,151.0,0.00016232,2]
[393370098,1762537642544,151.0,0.00016232,2]
[393370099,1762537643193,151.0,0.00016232,2]
[393370100,1762537643825,151.0,0.00016232,2]
[393370101,1762537644484,151.0,0.00016232,2]
[393370102,1762537645097,151.0,0.00016232,2]
[393370103,1762537645734,151.0,0.00016232,2]
[393370105,1762537646496,151.0,0.00016232,2]
[393370109,1762537675607,500.0,0.00016231,2]
[393370111,1762537680419,500.0,0.00039093,120]
[393370112,1762537689484,500.0,0.00016231,2]
[393370113,1762537697440,160.98037661,0.00016132,2]
[393370115,1762537703802,500.0,0.00016231,2]
[393370118,1762537757462,6772.93455417,0.00016132,2]
[393370119,1762537757494,7196.77980813,0.00016132,2]
[393370120,1762537758511,500.0,0.00016231,2]
[393370122,1762537776175,259.78032375,0.00016231,2]
[393370124,1762537800183,156.92069666,0.00016132,2]
[393370125,1762537801665,1200.0,0.00016231,2]
[393370126,1762537802168,300.0,0.00016231,2]
[393370127,1762537805002,1238.59,0.00016222,2]
[393370128,1762537812458,500.0,0.00016231,2]
[393370129,1762537812508,500.0,0.00016231,2]
[393370130,1762537812561,500.0,0.00016231,2]
[393370131,1762537812624,583.46394663,0.00016231,2]
[393370134,1762537830295,500.0,0.00016231,2]
[393370135,1762537830342,500.0,0.00016231,2]
[393370136,1762537830393,500.0,0.00016231,2]
[393370137,1762537830450,525.0,0.00016231,2]
[393370148,1762537832132,-1680.66735613,0.00016232,2]
[393370151,1762537832198,-123980.91211247,0.00016232,2]
[393370152,1762537832211,-46938.00750234,0.00016232,2]
[393370153,1762537832224,-149795.42330095,0.00016232,2]
[393370154,1762537832306,-512.0272,0.00016232,2]
[393370155,1762537832358,-370.0,0.00016232,2]
[393370156,1762537832376,-547.134,0.00016232,2]
[393370157,1762537832389,-6765.40000001,0.00016232,2]
[393370158,1762537832401,-20330.83896721,0.00016232,2]
[393370282,1762537838127,-529.74999985,0.00016232,2]
[393370283,1762537838140,-1811.80915,0.00016232,2]
[393370284,1762537838152,-273.89,0.00016232,2]
[393370285,1762537838179,-62464.14041104,0.00016232,2]
[393370286,1762537838189,-1000.0,0.00016232,2]
[393370287,1762537838199,-195.0,0.0001628,2]
[393370288,1762537838209,-13969.71436223,0.00016328,2]
[393370289,1762537838219,-631.36940064,0.00016331,2]
[393370290,1762537838228,-500.0,0.00016331,2]
[393370291,1762537838238,-500.0,0.00016331,2]
[393370292,1762537838248,-500.0,0.00016331,2]
[393370293,1762537838258,-500.0,0.00016331,2]
[393370294,1762537838268,-500.0,0.00016331,2]
[393370295,1762537838278,-500.0,0.00016331,2]
[393370296,1762537838288,-500.0,0.00016331,2]
[393370297,1762537838298,-195.0,0.00016344,2]
[393370298,1762537838312,-156.92069662,0.00016385,2]
[393370299,1762537838322,-1000.0,0.00016392,2]
[393370300,1762537838331,-500.0,0.00016438,2]
[393370301,1762537838342,-500.0,0.00016438,2]
[393370302,1762537838352,-275.18543709,0.00016438,2]
[393370303,1762537838362,-500.0,0.00016438,2]
[393370304,1762537838376,-451.80448571,0.00016438,2]
[393370305,1762537838387,-500.0,0.00016438,2]
[393370306,1762537838397,-13969.71436223,0.00016525,2]
[393370307,1762537838408,-411.67747315,0.00016547,2]
[393370308,1762537838419,-150.99,0.00016548,2]
[393370309,1762537838430,-35748.31,0.00016548,2]
[393370310,1762537838441,-287.0,0.00016548,2]
[393370311,1762537838452,-166.66,0.00016548,2]
[393370312,1762537838463,-166.66,0.00016596,2]
[393370313,1762537838474,-6487.18,0.00016596,2]
[393370314,1762537838485,-5934.89,0.00016596,2]
[393370315,1762537838496,-156.92069662,0.00016637,2]
[393370316,1762537838506,-500.0,0.00016721,2]
[393370317,1762537838518,-525.82294279,0.00016721,2]
[393370318,1762537838528,-150.99,0.00016721,2]
[393370319,1762537838538,-500.0,0.00016721,2]
[393370320,1762537838549,-500.0,0.00016721,2]
[393370321,1762537838560,-500.0,0.00016721,2]
[393370322,1762537838570,-13969.71436223,0.00016721,2]
[393370323,1762537838581,-150.0,0.00016767,2]
[393370324,1762537838591,-10955.46,0.00016795,2]
[393370325,1762537838601,-5000.0,0.00016818,2]
[393370327,1762537838611,-180.19074985,0.00016844,2]
[393370329,1762537838627,-501.35810388,0.00016844,2]
[393370331,1762537838636,-374.78377538,0.00016844,2]
[393370333,1762537838646,-500.0,0.00016844,2]
[393370335,1762537838655,-200.0,0.00016859,2]
[393370338,1762537838666,-166.66,0.00016876,2]
[393370340,1762537838676,-150.0,0.00016884,2]
[393370342,1762537838685,-150.0,0.00016884,2]
[393370344,1762537838696,-150.0,0.00016884,2]
[393370346,1762537838706,-500.0,0.00016886,2]
[393370348,1762537838716,-500.0,0.00016886,2]
[393370350,1762537838726,-156.92069662,0.0001689,2]
[393370352,1762537838737,-150.0,0.000169,2]
[393370354,1762537838747,-13969.71436223,0.00016918,2]
[393370356,1762537838758,-1000.0,0.00016919,2]
[393370357,1762537838767,-150.0,0.00016921,2]
[393370358,1762537838777,-150.0,0.00016921,2]
[393370359,1762537838786,-500.0,0.00016921,2]
[393370360,1762537838796,-150.0,0.00016921,2]
[393370361,1762537838806,-535.0,0.00016921,2]
[393370362,1762537838816,-150.0,0.00016921,2]
[393370363,1762537838826,-500.0,0.00016921,2]
[393370364,1762537838837,-495.0,0.00016921,2]
[393370365,1762537838846,-234.06701824,0.00016921,2]
[393370366,1762537838857,-150.0,0.00016945,2]
[393370367,1762537838870,-500.0,0.00016957,2]
[393370368,1762537838880,-500.0,0.00016957,2]
[393370369,1762537838891,-501.17210201,0.00016957,2]
[393370370,1762537838902,-500.0,0.00016957,2]
[393370371,1762537838912,-500.0,0.00016957,2]
[393370372,1762537838922,-500.0,0.00016957,2]
[393370373,1762537838932,-500.0,0.00016957,2]
[393370374,1762537838942,-500.0,0.00016957,2]
[393370375,1762537839171,-500.0,0.00016957,2]
[393370376,1762537839183,-500.0,0.00016957,2]
[393370377,1762537839195,-274.37432305,0.00016957,2]
[393370378,1762537839207,-500.0,0.00016957,2]
[393370379,1762537839218,-167.42370191,0.00016957,2]
[393370380,1762537839229,-500.0,0.00016957,2]
[393370381,1762537839240,-625.33684407,0.00016957,2]
[393370382,1762537839252,-500.0,0.00016957,2]
[393370383,1762537839262,-666.51673486,0.00016959,2]
[393370384,1762537839273,-150.0,0.0001696,2]
[393370385,1762537839284,-158.10520821,0.0001696,2]
[393370386,1762537839295,-150.0,0.0001696,2]
[393370387,1762537839310,-150.0,0.0001696,2]
[393370388,1762537839322,-500.0,0.0001696,2]
[393370389,1762537839332,-155.73974734,0.0001696,2]
[393370390,1762537839344,-150.0,0.0001696,2]